fUST/lending_fUST_20251110
["ID","MTS","AMOUNT","RATE_DAILY","PERIOD"]
[393484733,1762714766888,-500.0,0.00037014,60]
[393484735,1762714766917,-500.0,0.00037014,60]
[393484737,1762714766947,-500.0,0.00037014,60]
[393484739,1762714766976,-500.0,0.00037014,60]
[393484741,1762714767004,-257.55334511,0.00037014,60]
[393484744,1762714767030,-500.0,0.00037014,60]
[393484746,1762714767058,-500.0,0.00037014,60]
[393484748,1762714767087,-500.0,0.00037014,60]
[393484750,1762714767115,-500.0,0.00037014,60]
[393484752,1762714767143,-500.0,0.00037014,60]
[393484754,1762714767171,-193.77445628,0.00037014,60]
[393484756,1762714767201,-500.0,0.00037014,60]
[393484758,1762714767230,-500.0,0.00037014,60]
[393484761,1762714767260,-500.0,0.00037014,60]
[393484763,1762714767292,-500.0,0.00037014,60]
[393484765,1762714767319,-500.0,0.00037014,60]
[393484767,1762714767346,-500.0,0.00037014,60]
[393484769,1762714767375,-500.0,0.00037014,60]
[393484771,1762714767404,-272.24,0.00037014,60]
[393484773,1762714767436,-500.0,0.00037014,60]
[393484776,1762714767466,-500.0,0.00037014,60]
[393484778,1762714767494,-500.0,0.00037014,60]
[393484780,1762714767524,-500.0,0.00037014,60]
[393484782,1762714767553,-500.0,0.00037014,60]
[393484784,1762714767582,-500.0,0.00037014,60]
[393484786,1762714767612,-500.0,0.00037014,60]
[393484788,1762714767641,-500.0,0.00037014,60]
[393484790,1762714767669,-500.0,0.00037014,60]
[393484792,1762714767697,-500.0,0.00037014,60]
[393484794,1762714767725,-633.7,0.00037014,60]
[393484797,1762714767753,-500.0,0.00037014,60]
[393484798,1762714767783,-500.0,0.00037014,60]
[393484799,1762714767812,-500.0,0.00037014,60]
[393484800,1762714767840,-500.0,0.00037014,60]
[393484801,1762714767869,-500.0,0.00037014,60]
[393484804,1762714768008,-500.0,0.00037014,60]
[393484806,1762714768056,-500.0,0.00037014,60]
[393484808,1762714768087,-500.0,0.00037014,60]
[393484810,1762714768116,-500.0,0.00037014,60]
[393484813,1762714768145,-500.0,0.00037014,60]
[393484815,1762714768172,-500.0,0.00037014,60]
[393484817,1762714768199,-500.0,0.00037014,60]
[393484819,1762714768229,-500.0,0.00037014,60]
[393484821,1762714768258,-500.0,0.00037014,60]
[393484823,1762714768289,-500.0,0.00037014,60]
[393484825,1762714768319,-500.0,0.00037014,60]
[393484827,1762714768347,-500.0,0.00037014,60]
[393484829,1762714768373,-500.0,0.00037014,60]
[393484831,1762714768398,-500.0,0.00037014,60]
[393484833,1762714768424,-608.15,0.00037014,60]
[393484835,1762714768449,-501.11,0.00037014,60]
[393484837,1762714768475,-500.0,0.00037014,60]
[393484839,1762714768500,-548.44,0.00037014,60]
[393484841,1762714768526,-500.0,0.00037014,60]
[393484843,1762714768550,-262.46692994,0.00037014,60]
[393484845,1762714768577,-500.0,0.00037014,60]
[393484847,1762714768604,-500.0,0.00037014,60]
[393484849,1762714768629,-401.16,0.00037014,60]
[393484851,1762714768656,-500.0,0.00037014,60]
[393484853,1762714768681,-500.0,0.00037014,60]
[393484855,1762714768706,-500.0,0.00037014,60]
[393484857,1762714768730,-646.14,0.00037014,60]
[393484859,1762714768753,-509.22887627,0.00037014,60]
[393484867,1762714768929,1800.72308819,0.00019988,2]
[393485036,1762714773617,-1868.56895592,0.00037014,30]
[393485038,1762714773645,-10359.90257402,0.00037014,31]
[393485040,1762714773672,-261.0,0.00037014,30]
[393485041,1762714773703,-500.0,0.00037014,30]
[393485042,1762714773730,-500.0,0.00037014,30]
[393485043,1762714773756,-500.0,0.00037014,30]
[393485044,1762714773783,-500.0,0.00037014,30]
[393485045,1762714773809,-500.0,0.00037014,30]
[393485046,1762714773835,-630.03440838,0.00037014,30]
[393485047,1762714773868,-509.77849415,0.00037014,20]
[393488358,1762714879269,500.0,0.00037014,60]
[393490360,1762714973816,-150.0,0.0002,2]
[393490361,1762714973847,-150.0,0.00020096,2]
[393490363,1762714973876,-3071.4845162,0.00020191,2]
[393490365,1762714973904,-986.0,0.00020191,2]
[393490366,1762714973934,-300.0,0.00020551,2]
[393490368,1762714973964,-185.0409676,0.00020552,2]
[393490371,1762714974064,-314.9590324,0.00020552,2]
[393490403,1762714979761,-10000.01,0.00020553,2]
[393490409,1762715022423,312.49,0.00037015,30]
[393490437,1762715083880,906.4778728,0.00032877,120]
[393490443,1762715107000,-500.0,0.00020552,2]
[393490444,1762715107033,-1200.0,0.00020552,2]
[393490445,1762715107083,-6600.01,0.00020553,2]
[393490446,1762715112858,-1459.8014695,0.00020553,2]
[393490447,1762715112886,-203.3473564,0.0002087,2]
[393490523,1762715279896,-3199.27691181,0.00020346,2]
[393490524,1762715284897,158.4,0.00016484,20]
[393490525,1762715285208,158.4,0.00016484,20]
[393490526,1762715285491,158.4,0.00016484,20]
[393490527,1762715290928,-150.0,0.00020449,2]
[393490548,1762715336451,-500.0,0.00020552,2]
[393490549,1762715336486,-500.0,0.00020552,2]
[393490592,1762715431986,-267.58074996,0.00021518,2]
[393490594,1762715431997,-382.41925004,0.00021518,2]
[393490596,1762715432037,-678.58074996,0.00021518,2]
[393490597,1762715432048,-158.73756157,0.00021818,2]
[393490617,1762715437794,-1041.26243843,0.00021818,2]
[393490619,1762715437805,-810.47977088,0.00021842,2]
[393490621,1762715437815,-1856.68440132,0.00021842,2]
[393490623,1762715437824,-1247.26952653,0.00021882,2]
[393490625,1762715437834,-221.85,0.000219,2]
[393490627,1762715437844,-1148.18,0.00021931,10]
[393490629,1762715437853,-300.0,0.00021931,2]
[393490631,1762715437864,-300.0,0.00021931,2]
[393490633,1762715437873,-56.01974479,0.00021931,2]
[393490634,1762715438038,-210.98025521,0.00021931,2]
[393490635,1762715438052,-980.27895504,0.00021932,10]
[393490636,1762715438066,-397.54104496,0.00021932,10]
[393490637,1762715438076,-149.17395504,0.00021941,2]
[393490638,1762715438089,-150.82604496,0.00021941,2]
[393490639,1762715438099,-300.0,0.00021941,2]
[393490640,1762715438109,-300.0,0.00021941,2]
[393490641,1762715438119,-176.21800546,0.00021941,2]
[393490642,1762715438129,-134.8166129,0.00021941,2]
[393490657,1762715439977,-365.1833871,0.00021941,2]
[393490658,1762715439987,-500.0,0.00021941,2]
[393490659,1762715439997,-500.0,0.00021941,2]
[393490660,1762715440007,-500.0,0.00021941,2]
[393490661,1762715440016,-374.4816129,0.00021941,2]
[393490664,1762715440638,-125.5183871,0.00021941,2]
[393490665,1762715440648,-3433.831616,0.00021941,2]
[393490666,1762715440658,-500.0,0.00021941,2]
[393490667,1762715440668,-500.0,0.00021941,2]
[393490668,1762715440678,-500.0,0.00021941,2]
[393490669,1762715440688,-500.0,0.00021941,2]
[393490670,1762715440697,-500.0,0.00021941,2]
[393490671,1762715440708,-3433.831616,0.00021941,2]
[393490672,1762715440718,-415.81162149,0.00021941,2]
[393490673,1762715440728,-500.0,0.00021941,2]
[393490674,1762715440737,-500.0,0.00021941,2]
[393490675,1762715440747,-323.03009228,0.00021941,2]
[393490676,1762715440756,-500.0,0.00021941,2]
[393490677,1762715440766,-500.0,0.00021941,2]
[393490678,1762715440776,-3433.831616,0.00021941,2]
[393490679,1762715440785,-500.0,0.00021941,2]
[393490680,1762715440795,-3433.831616,0.00021941,2]
[393490681,1762715440805,-500.0,0.00021941,2]
[393490682,1762715440816,-500.0,0.00021941,2]
[393490683,1762715440826,-396.73604496,0.00021941,2]
[393490684,1762715440839,-103.26395504,0.00021941,2]
[393490685,1762715440850,-500.0,0.00021941,2]
[393490686,1762715440860,-3433.831616,0.00021941,2]
[393490687,1762715440870,-500.0,0.00021941,2]
[393490688,1762715440881,-420.81403454,0.00021941,2]
[393490689,1762715440891,-500.0,0.00021941,2]
[393490690,1762715440901,-137.15076144,0.00021941,2]
[393490701,1762715444980,-500.0,0.00021941,2]
[393490718,1762715445140,-2748.4039686,0.00021941,2]
[393490848,1762715446434,-956.82,0.00021931,10]
[393490850,1762715446444,-48.27688596,0.00021941,2]
[393490852,1762715446454,-500.0,0.00021941,2]
[393490854,1762715446464,-40.78532861,0.00021941,2]
[393490887,1762715462115,319.79418052,0.00019058,2]
[393490889,1762715503612,180.20581948,0.00021502,2]
[393490891,1762715612765,4983058.22556753,0.00037015,20]
[393490897,1762715719570,274.50114782,0.00019058,2]
[393490908,1762715814637,9725.50885218,0.00020902,2]
[393490909,1762715814660,9518.04486402,0.00020902,2]
[393490912,1762715823859,481.96513598,0.00020902,2]
[393490913,1762715823882,517.03486402,0.00020902,2]
[393490914,1762715825180,5000.0,0.00021362,2]
[393490915,1762715827504,174.411805,0.00020905,2]
[393490916,1762715863181,-5000.0,0.00021287,2]
[393490917,1762715870687,0.01,0.00021287,2]
[393490918,1762715870709,4999.99,0.00021287,2]
[393490942,1762716113488,-5000.0,0.00020975,2]
[393490946,1762716283690,-3309.86981956,0.00020766,2]
[393490949,1762716319347,1264109.0,0.00037047,20]
[393490950,1762716324516,986.56765256,0.00020552,2]
[393490959,1762716384679,3735891.0,0.00037047,20]
[393490963,1762716517600,-150.0,0.00020977,2]
[393490964,1762716518975,9573.19254052,0.00014,2]
[393490965,1762716519266,126.81745948,0.000202,2]
[393490966,1762716519290,218.45378074,0.000202,2]
[393490967,1762716530303,-300.02726383,0.00021,5]
[393490968,1762716533559,-236.22980338,0.00021,5]
[393490969,1762716533813,-4974.89889043,0.00021,5]
[393490970,1762716537982,-223.99299452,0.00021188,2]
[393490971,1762716540162,-173.4791613,0.00021188,2]
[393490972,1762716541803,-183.30970447,0.00021188,2]
[393490973,1762716543970,-151.0,0.00021188,2]
[393490974,1762716617183,50.21221914,0.00013699,2]
[393490975,1762716617208,394.92458286,0.00013699,2]
[393490976,1762716617374,445.136802,0.00020187,2]
[393490977,1762716619576,251.59710578,0.00019058,2]
[393491012,1762716632035,-150.0,0.000212,2]
[393491014,1762716632044,-150.0,0.000212,2]
[393491016,1762716632053,-206.21095527,0.00021402,2]
[393491018,1762716632062,-219.46167369,0.00021402,2]
[393491020,1762716632072,-1070.26790757,0.00021699,2]
[393491023,1762716632085,-2801.81137023,0.00021699,2]
[393491025,1762716632095,-152.9202096,0.00021766,2]
[393491027,1762716632105,-224.35822645,0.00021824,2]
[393491083,1762716638122,-150.0,0.000212,2]
[393491085,1762716638132,-75.64177355,0.00021824,2]
[393491087,1762716638142,-35.13749645,0.00021824,2]
[393491089,1762716638154,-264.86250355,0.00021824,2]
[393491091,1762716638163,-1200.0,0.00021824,2]
[393491093,1762716638174,-1537.22,0.00021825,10]
[393491095,1762716638184,-1281.01,0.00021825,10]
[393491097,1762716638195,-1067.51,0.00021825,10]
[393491099,1762716638205,-2742.64972415,0.00021832,2]
[393491100,1762716638215,-1123.0,0.00021833,2]
[393491102,1762716638226,-279.54119079,0.00021834,2]
[393491103,1762716638235,-974.20658151,0.00021835,2]
[393491104,1762716638252,-7109.18540004,0.00021835,2]
[393491132,1762716643932,-150.09232587,0.000218,2]
[393491133,1762716643944,-889.59,0.00021824,10]
[393491135,1762716643954,-500.0,0.00021834,2]
[393491137,1762716643963,-500.0,0.00021834,2]
[393491139,1762716643973,-500.0,0.00021834,2]
[393491140,1762716643982,-242.08140348,0.00021834,2]
[393491141,1762716643992,-500.0,0.00021834,2]
[393491142,1762716644001,-269.43627068,0.00021834,2]
[393491169,1762716646634,-150.0,0.000212,2]
[393491171,1762716646645,-230.56372932,0.00021834,2]
[393491173,1762716646655,-139.43626268,0.00021834,2]
[393491207,1762716647150,-360.56373732,0.00021834,2]
[393491208,1762716647160,-194.06431656,0.00021834,2]
[393491209,1762716647170,-500.0,0.00021834,2]
[393491210,1762716647178,-500.0,0.00021834,2]
[393491211,1762716647188,-500.0,0.00021834,2]
[393491212,1762716647198,-500.0,0.00021834,2]
[393491213,1762716647208,-699.14740402,0.00021834,2]
[393491214,1762716647218,-5908.38045936,0.00021834,2]
[393491215,1762716647227,-5908.38045936,0.00021834,2]
[393491216,1762716647237,-699.14740402,0.00021834,2]
[393491217,1762716647246,-500.0,0.00021834,2]
[393491218,1762716647256,-5908.38045936,0.00021834,2]
[393491219,1762716647265,-699.14740402,0.00021834,2]
[393491220,1762716647274,-5908.38045936,0.00021834,2]
[393491221,1762716647284,-699.14740402,0.00021834,2]
[393491222,1762716647293,-349.45470856,0.00021834,2]
[393491223,1762716647303,-5908.38045936,0.00021834,2]
[393491224,1762716647312,-699.14740402,0.00021834,2]
[393491225,1762716647321,-699.14740402,0.00021834,2]
[393491226,1762716647330,-5908.38045936,0.00021834,2]
[393491227,1762716647339,-699.14740402,0.00021834,2]
[393491228,1762716647349,-5908.38045936,0.00021834,2]
[393491229,1762716647358,-699.14740402,0.00021834,2]
[393491230,1762716647367,-5908.38045936,0.00021834,2]
[393491231,1762716647377,-699.14740402,0.00021834,2]
[393491232,1762716647386,-5908.38045936,0.00021834,2]
[393491233,1762716647396,-5908.38045936,0.00021834,2]
[393491234,1762716647406,-699.14740402,0.00021834,2]
[393491235,1762716647415,-5908.38045936,0.00021834,2]
[393491236,1762716647424,-699.14740402,0.00021834,2]
[393491237,1762716647437,-5908.38045936,0.00021834,2]
[393491238,1762716647447,-699.14740402,0.00021834,2]
[393491239,1762716647458,-5908.38045936,0.00021834,2]
[393491240,1762716647467,-699.14740402,0.00021834,2]
[393491241,1762716647477,-5908.38045936,0.00021834,2]
[393491242,1762716647487,-5908.38045936,0.00021834,2]
[393491243,1762716647496,-699.14740402,0.00021834,2]
[393491244,1762716647506,-5908.38045936,0.00021834,2]
[393491245,1762716647515,-699.14740402,0.00021834,2]
[393491246,1762716647524,-5908.38045936,0.00021834,2]
[393491247,1762716647534,-5908.38045936,0.00021834,2]
[393491248,1762716647543,-699.14740402,0.00021834,2]
[393491249,1762716647552,-5908.38045936,0.00021834,2]
[393491250,1762716647562,-5908.38045936,0.00021834,2]
[393491251,1762716647571,-699.14740402,0.00021834,2]
[393491252,1762716647580,-5908.38045936,0.00021834,2]
[393491253,1762716647590,-699.14740402,0.00021834,2]
[393491254,1762716647599,-5908.38045936,0.00021834,2]
[393491255,1762716647608,-699.14740402,0.00021834,2]
[393491256,1762716647617,-5908.38045936,0.00021834,2]
[393491257,1762716647626,-699.14740402,0.00021834,2]
[393491258,1762716647636,-5908.38045936,0.00021834,2]
[393491259,1762716647645,-699.14740402,0.00021834,2]
[393491260,1762716647654,-5908.38045936,0.00021834,2]
[393491261,1762716647664,-699.14740402,0.00021834,2]
[393491262,1762716647674,-5908.38045936,0.00021834,2]
[393491263,1762716647683,-5908.38045936,0.00021834,2]
[393491264,1762716647693,-699.14740402,0.00021834,2]
[393491265,1762716647702,-5908.38045936,0.00021834,2]
[393491266,1762716647715,-699.14740402,0.00021834,2]
[393491267,1762716647724,-5908.38045936,0.00021834,2]
[393491268,1762716647734,-699.14740402,0.00021834,2]
[393491269,1762716647744,-5908.38045936,0.00021834,2]
[393491270,1762716647754,-699.14740402,0.00021834,2]
[393491271,1762716647764,-5908.38045936,0.00021834,2]
[393491272,1762716647775,-699.14740402,0.00021834,2]
[393491273,1762716647786,-5908.38045936,0.00021834,2]
[393491274,1762716647798,-699.14740402,0.00021834,2]
[393491275,1762716647808,-699.14740402,0.00021834,2]
[393491276,1762716647818,-5908.38045936,0.00021834,2]
[393491277,1762716647828,-699.14740402,0.00021834,2]
[393491278,1762716647838,-5908.38045936,0.00021834,2]
[393491279,1762716647850,-5908.38045936,0.00021834,2]
[393491280,1762716647860,-699.14740402,0.00021834,2]
[393491281,1762716647875,-5908.38045936,0.00021834,2]
[393491282,1762716647891,-699.14740402,0.00021834,2]
[393491283,1762716647902,-699.14740402,0.00021834,2]
[393491284,1762716647913,-5908.38045936,0.00021834,2]
[393491285,1762716647924,-5908.38045936,0.00021834,2]
[393491286,1762716647934,-699.14740402,0.00021834,2]
[393491287,1762716648039,-5908.38045936,0.00021834,2]
[393491288,1762716648051,-699.14740402,0.00021834,2]
[393491289,1762716648061,-5908.38045936,0.00021834,2]
[393491290,1762716648071,-699.14740402,0.00021834,2]
[393491291,1762716648082,-5908.38045936,0.00021834,2]
[393491292,1762716648092,-699.14740402,0.00021834,2]
[393491293,1762716648102,-5908.38045936,0.00021834,2]
[393491294,1762716648112,-699.14740402,0.00021834,2]
[393491295,1762716648122,-5908.38045936,0.00021834,2]
[393491296,1762716648132,-5908.38045936,0.00021834,2]
[393491297,1762716648143,-699.14740402,0.00021834,2]
[393491298,1762716648152,-5908.38045936,0.00021834,2]
[393491299,1762716648161,-5908.38045936,0.00021834,2]
[393491300,1762716648171,-699.14740402,0.00021834,2]
[393491301,1762716648181,-5908.38045936,0.00021834,2]
[393491302,1762716648191,-699.14740402,0.00021834,2]
[393491303,1762716648200,-699.14740402,0.00021834,2]
[393491304,1762716648212,-5908.38045936,0.00021834,2]
[393491305,1762716648222,-699.14740402,0.00021834,2]
[393491306,1762716648232,-5908.38045936,0.00021834,2]
[393491307,1762716648242,-699.14740402,0.00021834,2]
[393491308,1762716648251,-699.14740402,0.00021834,2]
[393491309,1762716648260,-5908.38045936,0.00021834,2]
[393491310,1762716648270,-699.14740402,0.00021834,2]
[393491311,1762716648279,-699.14740402,0.00021834,2]
[393491312,1762716648288,-5908.38045936,0.00021834,2]
[393491313,1762716648297,-699.14740402,0.00021834,2]
[393491314,1762716648307,-699.14740402,0.00021834,2]
[393491315,1762716648316,-699.14740402,0.00021834,2]
[393491316,1762716648325,-5908.38045936,0.00021834,2]
[393491317,1762716648334,-699.14740402,0.00021834,2]
[393491318,1762716648343,-699.14740402,0.00021834,2]
[393491319,1762716648352,-699.14740402,0.00021834,2]
[393491320,1762716648361,-5908.38045936,0.00021834,2]
[393491321,1762716648371,-5908.38045936,0.00021834,2]
[393491322,1762716648381,-699.14740402,0.00021834,2]
[393491323,1762716648391,-699.14740402,0.00021834,2]
[393491324,1762716648404,-141092.06888704,0.00021835,2]
[393491325,1762716682988,150.0,0.000202,2]
[393491326,1762716683879,-150.0,0.000212,2]
[393491327,1762716683907,-138.21778454,0.000212,2]
[393491328,1762716694817,150.0,0.000202,2]
[393491329,1762716696232,1690.13018044,0.00021,2]
[393491330,1762716699958,605.93941818,0.00020791,6]
[393491331,1762716700090,605.93941818,0.00020998,6]
[393491332,1762716706277,150.0,0.000202,2]
[393491333,1762716740288,-323.46646546,0.00020778,2]
[393491334,1762716742348,-174.03950659,0.00020778,2]
[393491335,1762716744394,-230.47965682,0.00020778,2]
[393491336,1762716746580,-250.66297056,0.00020778,2]
[393491337,1762716748594,-268.171401,0.00020778,2]
[393491338,1762716748697,-3753.17999957,0.00020778,2]
[393491339,1762716748823,2493.65000086,0.00020552,2]
[393491340,1762716748845,2506.34999914,0.00020552,2]
[393491341,1762716750656,-150.0,0.00020883,2]
[393491342,1762716750679,-5.76197897,0.00020988,2]
[393491343,1762716755774,-267.4125826,0.00020988,2]
[393491344,1762716756397,5000.0,0.00020778,2]
[393491345,1762716758268,-243.08541797,0.00020988,2]
[393491346,1762716759875,-455.59804382,0.00020988,2]
[393491347,1762716762606,-389.8978337,0.00020988,2]
[393491348,1762716764018,-2594.22547379,0.00020988,2]
[393491349,1762716766577,-179.25259849,0.0002099,2]
[393491350,1762716766883,-6859.95871902,0.0002099,2]
[393491351,1762716766978,-10000.01,0.0002099,2]
[393491352,1762716773003,-5000.0,0.0002078,2]
[393491353,1762716773042,-0.01,0.0002099,2]
[393491354,1762716773119,-10000.01,0.0002099,2]
[393491357,1762716785434,-294.79700951,0.0002078,2]
[393491358,1762716787963,-161.26386905,0.0002078,2]
[393491359,1762716787991,5000.0,0.00020552,2]
[393491360,1762716790044,-378.0866771,0.0002078,2]
[393491361,1762716795826,150.0,0.000202,2]
[393491362,1762716796284,334.07814108,0.00020552,2]
[393491363,1762716806438,150.0,0.000202,2]
[393491364,1762716812057,4365.93185892,0.00020552,2]
[393491365,1762716812079,634.06814108,0.00020552,2]
[393491366,1762716818225,150.0,0.000202,2]
[393491367,1762716829025,150.0,0.000202,2]
[393491368,1762716834502,850.0,0.00020552,2]
[393491374,1762716980268,-158.86447604,0.00019641,2]
[393491375,1762716984017,-256.02365009,0.00019641,2]
[393491376,1762716985563,-158.4275656,0.00019641,2]
[393491377,1762716988931,-254.35320251,0.00019641,2]
[393491378,1762716990934,-359.60416737,0.00019641,2]
[393491379,1762716993310,-267.97438449,0.00019641,2]
[393491380,1762716994593,-306.69884262,0.00019641,2]
[393491381,1762717010358,-241.31398231,0.00019581,2]
[393491382,1762717013157,-295.58557204,0.00019481,2]
[393491383,1762717018203,-207.85200226,0.00019481,2]
[393491384,1762717020358,-181.19076329,0.00019481,2]
[393491385,1762717021913,-455.42158726,0.00019481,2]
[393491386,1762717024084,-167.10015383,0.00019481,2]
[393491387,1762717041425,-165.38600161,0.00019093,2]
[393491388,1762717045357,-223.4119916,0.00019093,2]
[393491389,1762717047793,-227.538239,0.00019093,2]
[393491390,1762717050574,-262.4581319,0.00019093,2]
[393491391,1762717052629,-238.39793954,0.00019093,2]
[393491392,1762717054267,-300.0,0.00019093,2]
[393491393,1762717057652,-300.0,0.00019093,2]
[393491394,1762717061296,-188.53636267,0.00019093,2]
[393491395,1762717064067,-213.70560024,0.00019093,2]
[393491396,1762717066043,-257.83079335,0.00019093,2]
[393491397,1762717068724,-261.64173171,0.00019093,2]
[393491398,1762717083674,166.32,0.00016084,2]
[393491399,1762717084166,166.32,0.00016084,2]
[393491400,1762717084411,-211.98090437,0.00019093,2]
[393491401,1762717100363,-231.30102742,0.00019093,2]
[393491402,1762717102511,-366.95278281,0.00019093,2]
[393491403,1762717107535,-299.40686352,0.00019093,2]
[393491404,1762717110778,-151.46812148,0.00019093,2]
[393491405,1762717113062,-311.46363733,0.00019093,2]
[393491406,1762717114578,-255.42743889,0.00019093,2]
[393491407,1762717131132,-232.24266194,0.00019093,2]
[393491408,1762717132692,-300.84977062,0.00019093,2]
[393491409,1762717132715,-41.66978131,0.000191,2]
[393491410,1762717134843,-108.33021869,0.000191,2]
[393491411,1762717134865,-71.90211217,0.000191,2]
[393491412,1762717138848,-166.25800024,0.00018909,2]
[393491413,1762717138870,-78.09788783,0.000191,2]
[393491414,1762717138892,-140.82342994,0.00019171,2]
[393491415,1762717141515,-150.0,0.000191,2]
[393491416,1762717141540,-9.17657006,0.00019171,2]
[393491417,1762717141567,-47.77887958,0.00019248,2]
[393491418,1762717145280,-174.14009285,0.000191,2]
[393491419,1762717148067,-172.41846922,0.000191,2]
[393491420,1762717150198,-153.44143793,0.000191,2]
[393491421,1762717150223,-158.23477585,0.00019248,2]
[393491422,1762717152170,-166.88930777,0.00019248,2]
[393491423,1762717152198,-316.62768821,0.00019286,2]
[393491424,1762717175855,-353.3030437,0.00019093,2]
[393491430,1762717228494,218.341788,0.00019572,7]
[393491437,1762717358414,5000.0,0.0001822,2]
[393491438,1762717374063,353.3030437,0.0001822,2]
[393491439,1762717382482,5000.0,0.0001822,2]
[393491440,1762717405060,5000.0,0.0001822,2]
[393491441,1762717413745,5000.0,0.0001822,2]
[393491442,1762717429343,2784.10673296,0.0001822,2]
[393491443,1762717437033,5000.0,0.0001822,2]
[393491444,1762717442184,152.86865261,0.00017818,2]
[393491445,1762717459846,1620.72149428,0.0001822,2]
[393491446,1762717520445,458.815048,0.00017989,2]
[393491475,1762717832284,-150.0,0.00018571,2]
[393491476,1762717832295,-900.0,0.00018571,2]
[393491477,1762717832306,-500.0,0.000186,2]
[393491478,1762717832316,-1050.0,0.00018888,2]
[393491479,1762717832328,-970.63779128,0.00018888,2]
[393491480,1762717832339,-1112.29911046,0.00018888,2]
[393491481,1762717832349,-667.06309826,0.000189,2]
[393491482,1762717832371,-285.95,0.000189,2]
[393491483,1762717832387,-246.98690174,0.000189,2]
[393491484,1762717832397,-494.78153487,0.00018901,2]
[393491485,1762717832414,-705.21846513,0.00018901,2]
[393491486,1762717832424,-20.54306586,0.00018972,2]
[393491509,1762717838159,-614.22396037,0.00018971,2]
[393491511,1762717838170,-500.0,0.00018971,2]
[393491513,1762717838183,-400.00000003,0.00018971,2]
[393491515,1762717838194,-286.54811086,0.00018971,2]
[393491517,1762717838209,-279.45693414,0.00018972,2]
[393491519,1762717838219,-300.0,0.00018972,2]
[393491521,1762717838231,-300.0,0.00018972,2]
[393491523,1762717838242,-300.0,0.00018972,2]
[393491525,1762717838252,-300.0,0.00018972,2]
[393491527,1762717838262,-50000.0,0.00018972,2]
[393491529,1762717838273,-500.0,0.00018973,2]
[393491531,1762717838284,-500.0,0.00018973,2]
[393491533,1762717838294,-500.9181771,0.00018973,2]
[393491535,1762717838304,-500.0,0.00018973,2]
[393491538,1762717838314,-170.38246972,0.00018973,2]
[393491540,1762717838324,-512.32993689,0.00018973,2]
[393491542,1762717838335,-563.03058891,0.00018973,2]
[393491544,1762717838346,-500.0,0.00018973,2]
[393491546,1762717838357,-500.0,0.00018973,2]
[393491548,1762717838368,-500.0,0.00018973,2]
[393491550,1762717838378,-500.0,0.00018973,2]
[393491552,1762717838388,-500.0,0.00018973,2]
[393491554,1762717838398,-500.0,0.00018973,2]
[393491556,1762717838407,-505.76688572,0.00018973,2]
[393491558,1762717838417,-500.0,0.00018973,2]
[393491560,1762717838427,-500.0,0.00018973,2]
[393491562,1762717838436,-500.0,0.00018973,2]
[393491564,1762717838446,-500.0,0.00018973,2]
[393491566,1762717838456,-500.0,0.00018973,2]
[393491568,1762717838466,-500.28862371,0.00018973,2]
[393491570,1762717838476,-500.0,0.00018973,2]
[393491572,1762717838485,-500.0,0.00018973,2]
[393491573,1762717838495,-155.69944327,0.00018978,2]
[393491575,1762717838505,-500.0,0.00018988,2]
[393491577,1762717838517,-500.0,0.00018988,2]
[393491580,1762717838527,-500.0,0.00018988,2]
[393491582,1762717838538,-500.0,0.00018988,2]
[393491584,1762717838548,-500.0,0.00018988,2]
[393491586,1762717838557,-500.0,0.00018988,2]
[393491588,1762717838567,-500.0,0.00018988,2]
[393491590,1762717838577,-500.0,0.00018988,2]
[393491592,1762717838587,-500.0,0.00018988,2]
[393491594,1762717838597,-500.0,0.00018988,2]
[393491596,1762717838606,-500.0,0.00018988,2]